Cogmind - Beta 11.1 *** ADVENTURER MODE // 2022.11.27 @ 19:23:50 Player: Olexender Result: Destroyed by L-41 Fighter with Axe Performance ------------- Evolutions (4) 2000 Regions Visited (10) 2000 Robots Destroyed (200) 1000 Value Destroyed (6663) 6663 Prototype IDs (38) 760 Alien Tech Used (0) 0 Bonus (2760) 2760 TOTAL SCORE: 15183 Bonus ------- High Alert Combat Kills 2341 Follower Combat Kills 134 Aligned with FarCom 300 Friendly Fire -15 Cogmind --------- Core Integrity 0/850 Matter 253/500 Energy 100/100 System Corruption 4% Temperature Cool (0) Movement Core (1450) Ox28 Location -6/Factory Parts ------- > --- POWER (2) -------- (None) > --- PROPULSION (4) --- (None) > --- UTILITY (6) ------ Huge Storage Unit High-capacity Matter Pod Hacking Suite > --- WEAPON (3) ------- Scythe > --- INVENTORY (25) --- Carbon-fiber Leg Armored Leg Advanced Heat Sink Energy Well (350) Advanced Weight Redist. System Structural Scanner Transmission Jammer ECM Suite Power Shielding Propulsion Shielding Improved Light Armor Plating AWS/Autocannon Peak State ------------ > --- POWER ------------ Angular Momentum Engine Light Angular Momentum Engine > --- PROPULSION ------- Armored Wheel Armored Wheel Antigrav Array > --- UTILITY ---------- Cryofiber Web Huge Storage Unit Force Field Hacking Suite Hacking Suite Drone Bay > --- WEAPON ----------- AWS/Autocannon > --- INVENTORY -------- Deuterium Engine Advanced Heat Sink High-capacity Battery High-capacity Matter Pod Advanced Weight Redist. System Structural Scanner ECM Suite Core Shielding Power Shielding Improved Light Armor Plating Focal Shield Shield Generator Drone Bay Drone Bay Drone Bay Drone Bay Drone Bay Drone Bay Drone Bay Enhanced Autogun Enhanced Autogun Enhanced Autogun Katana [Rating: 87] Favorites ----------- Power Deuterium Engine Engine Deuterium Engine Power Core Light Fission Core Reactor Light Antimatter Reactor Propulsion Armored Wheel Leg Aluminum Leg Wheel Armored Wheel Hover Unit Aerolev Unit Flight Unit Improved VTOL Module Utility Hacking Suite Device Cryofiber Web Storage Huge Storage Unit Processor Targeting Computer Hackware Hacking Suite Protection Core Shielding Weapon Precision Beam Rifle Energy Gun Precision Beam Rifle Energy Cannon Plasma Cannon Ballistic Gun Assault Rifle Ballistic Cannon Improved Light Cannon Special Weapon Mining Laser Slashing Weapon Scythe Build | -11 -10 -10 -9 -9 -9 -8 -8 -8 -8 -6 ------- Run | Scr Mat Min Mat Min Exi Min Mat Sto Rec Fac Slots Evolved 8 | . . . 2 . . . 2 . . 4 Power 1 | . . . . . . . 1 . . . Propulsion 2 | . . . 1 . . . . . . 1 Utility 4 | . . . 1 . . . 1 . . 2 Weapon 1 | . . . . . . . . . . 1 Parts Attached 186 | 7 7 5 6 2 . 6 53 37 . 63 Power 31 | 1 1 1 1 . . 1 10 4 . 12 Engine 22 | 1 1 1 1 . . . 9 4 . 5 Core 8 | . . . . . . 1 1 . . 6 Reactor 1 | . . . . . . . . . . 1 Propulsion 39 | 2 3 1 2 . . . 12 5 . 14 Treads . | . . . . . . . . . . . Leg 8 | 2 . . . . . . . . . 6 Wheel 28 | . 3 1 2 . . . 11 4 . 7 Hover 2 | . . . . . . . 1 . . 1 Flight 1 | . . . . . . . . 1 . . Utility 74 | 2 2 . 1 2 . 2 19 22 . 24 Device 48 | 2 . . 1 . . . 10 16 . 19 Storage 6 | . 1 . . 2 . . 2 . . 1 Processor 5 | . 1 . . . . 1 1 2 . . Hackware 4 | . . . . . . . . 1 . 3 Protection 11 | . . . . . . 1 6 3 . 1 Artifact . | . . . . . . . . . . . Weapon 42 | 2 1 3 2 . . 3 12 6 . 13 Energy Gun 14 | . 1 1 1 . . 1 5 3 . 2 Energy Cannon 1 | . . . . . . . . . . 1 Ballistic Gun 14 | 2 . . . . . 1 3 2 . 6 Ballistic Cannon 7 | . . 1 1 . . . 3 1 . 1 Launcher . | . . . . . . . . . . . Special Weapon 2 | . . 1 . . . 1 . . . . Impact Weapon . | . . . . . . . . . . . Slashing Weapon 4 | . . . . . . . 1 . . 3 Piercing Weapon . | . . . . . . . . . . . Special Melee Weapon . | . . . . . . . . . . . Unidentified Prototypes 11 | . 1 . . . . . 5 4 . 1 Parts Lost 36 | . . 1 1 . . 2 2 3 1 26 Power 10 | . . . 1 . . . 1 1 1 6 Propulsion 10 | . . 1 . . . . 1 2 . 6 Utility 9 | . . . . . . 1 . . . 8 Weapon 7 | . . . . . . 1 . . . 6 Highest Loss Streak 14 | . . 1 1 . . 1 2 2 1 14 To Critical Strikes . | . . . . . . . . . . . Average Slot Usage (%) 92 | . 99 99 99 100 100 99 91 97 95 79 Engine 11 | . 14 14 10 11 11 10 13 17 14 5 Core 1 | . . . . . . . 2 . . 3 Leg 1 | . 15 . . . . . . . . 1 Wheel 23 | . 11 27 33 33 33 33 22 26 27 18 Device 10 | . 8 . 11 11 11 11 11 9 9 14 Storage 9 | . 13 14 11 11 11 11 9 9 9 6 Processor 5 | . 5 14 11 11 11 9 3 7 . . Hackware 4 | . . . . . . . . 3 9 16 Protection 3 | . . . . . . 1 9 5 9 . Energy Gun 6 | . 5 14 11 11 11 9 8 7 . . Ballistic Gun 5 | . 22 6 . . . . 5 5 18 2 Ballistic Cannon 4 | . . 7 11 11 11 10 3 3 . 4 Naked Turns . | . . . . . . . . . . . Heaviest Build 227 | 11 23 25 26 56 56 63 227 108 107 176 Greatest Support 66 | 20 28 28 36 36 36 36 49 45 36 66 Greatest Overweight (x) 31 | . 1 1 1 1 1 2 5 4 2 31 Average Overweight (x) 1 | . . . . . 1 1 2 2 2 4 Largest Inventory Capacity 35 | 5 10 10 10 20 20 20 35 25 25 25 Average Capacity 21 | 5 9 10 10 18 20 20 24 25 25 25 Most Carried 27 | 5 10 10 10 12 19 20 27 25 24 25 Average Carried 19 | 2 9 9 8 11 15 19 21 23 23 21 Final Capacity 25 | 5 10 10 10 20 20 20 25 25 25 25 Final Carried 24 | 3 10 10 9 12 19 18 23 23 24 14 Class Distribution -------------------- 60% | Mutant 19% | Hacker-Skirmisher 13% | Hacker-Mutant 3% | Commander-Mutant 3% | Hauler-Mutant Dominant Class ---------------- Mutant | -10/Materials Mutant | -10/Mines Mutant | -9/Materials Mutant | -9/Mines Mutant | -9/Exiles Mutant | -8/Mines Mutant | -8/Materials Mutant | -8/Storage Hacker-Mutant | -8/Recycling Hacker-Skirmisher | -6/Factory Resources | -11 -10 -10 -9 -9 -9 -8 -8 -8 -8 -6 ----------- Run | Scr Mat Min Mat Min Exi Min Mat Sto Rec Fac Matter Collected 3533 | 306 253 171 209 2 104 95 889 735 62 707 Remotely 104 | 104 . . . . . . . . . . Salvage Created 7134 | 148 407 214 572 95 . 45 1823 1154 37 2639 Parts 380 | 7 21 14 41 1 . 1 115 50 5 125 Haulers Intercepted 11 | . . . 1 . . . 5 5 . . Recyclers Shooed 5 | 1 1 . . . . . . . . 3 Parts Field Recycled 17 | . . . . . . . 17 . . . Retrieved Matter 162 | . . . . . . . 162 . . . Parts Self-Destructed . | . . . . . . . . . . . Prevented . | . . . . . . . . . . . Kills | -11 -10 -10 -9 -9 -9 -8 -8 -8 -8 -6 ------- Run | Scr Mat Min Mat Min Exi Min Mat Sto Rec Fac Combat Hostiles Destroyed 166 | . 11 14 12 2 . 3 38 18 3 65 Melee 2 | . . . . . . . . . . 2 Guns 81 | . 11 11 6 1 . . 28 10 3 11 Cannons 81 | . . 3 6 1 . 3 10 7 . 51 AOE 1 | . . . . . . . . . . 1 Classes Destroyed 19 | 2 4 1 4 . . . 2 . 1 5 Worker 10 | . 1 . . . . . 3 3 . 3 Builder 2 | . . . . . . . 1 . . 1 Tunneler 3 | 2 . . 1 . . . . . . . Hauler 11 | . . . 1 . . . 5 5 . . Recycler 4 | 1 1 . . . . . 2 . . . Mechanic 1 | . . . . . . . . . . 1 Operator 3 | . . . 1 . . . 1 1 . . Drone 3 | . . . . . . . . . 3 . Watcher 14 | . 2 . 4 . . . 3 1 . 4 Swarmer 36 | . 6 8 . . . . 14 . . 8 Saboteur 1 | . . . . . . . . . . 1 Grunt 69 | . 5 1 6 . . 3 14 7 . 33 Brawler 2 | . . . . . . . . . . 2 Duelist 10 | . . . 1 . . . 1 . . 8 Sentry 27 | . . . 5 2 . . 8 8 . 4 Hunter 7 | . . . . . . . 1 3 . 3 Programmer 5 | . . . . . . . . . . 5 Behemoth 1 | . . . . . . . . . . 1 Assembled 5 | . . 5 . . . . . . . . Best Kill Streak 9 | 3 5 3 4 2 . 3 7 6 1 9 Combat Bots Only 8 | . 5 3 4 2 . 3 6 3 1 8 Max Kills in Single Turn 2 | 1 1 2 1 1 . 1 2 2 1 2 Gunslinging 1 | . . 1 . . . . . . . . Exploded 1 | . . . . . . . . . . 1 Melee 1 | . . . . . . . . . . 1 Uniques/NPCs Destroyed . | . . . . . . . . . . . Combat | -11 -10 -10 -9 -9 -9 -8 -8 -8 -8 -6 -------- Run | Scr Mat Min Mat Min Exi Min Mat Sto Rec Fac Damage Taken 7433 | . 226 308 307 121 . 333 1328 1160 20 3630 Core 1579 | . 61 78 82 15 . 14 272 197 . 860 Absorbed by Shields 785 | . . . . . . . . . . 785 Redirected to Shielding 113 | . . . . . . . 31 26 . 56 Regen/Repaired (Parts) 614 | . . . . . . . 283 179 . 152 Core Remaining (%) 57 | 100 . 44 . . . 72 . . 14 . Volleys Fired 416 | 6 40 31 43 4 . 17 133 79 11 52 Largest 3 | 2 2 2 2 2 . 2 2 2 2 3 Hottest 165 | 40 70 165 104 95 . 100 95 105 50 115 Shots Fired 913 | 12 77 61 78 8 . 24 253 149 23 228 Gun 618 | 12 77 45 35 4 . 8 199 114 23 101 Cannon 288 | . . 15 43 4 . 10 54 35 . 127 Launcher . | . . . . . . . . . . . Special 7 | . . 1 . . . 6 . . . . Kinetic 634 | 12 61 30 43 4 . 10 146 81 23 224 Thermal 275 | . 16 31 35 4 . 14 107 68 . . Explosive . | . . . . . . . . . . . Electromagnetic 4 | . . . . . . . . . . 4 Robot Hit Streak 49 | 8 19 12 19 6 . 24 25 43 6 49 Robot Miss Streak 7 | 1 4 3 3 . . 2 4 3 7 1 Penetration Max 2 | . . . . . . . . . . 2 Secondary Targets 7 | . 2 1 . . . . 1 . . 3 Max Gunslinging Chain 1 | . 1 1 . . . . 1 . . 1 Autonomous 128 | . . . . . . . . . . 128 Shots Hit Robots 738 | 9 55 41 60 5 . 22 185 129 6 226 Core Hits 312 | 4 24 19 24 3 . 8 82 44 3 101 Critical Kills . | . . . . . . . . . . . Critical Parts Destroyed 1 | . . . . . . . . . . 1 Critical Strikes 38 | . 2 4 1 . . 1 9 5 . 16 Burn 14 | . 2 3 . . . . 5 4 . . Destroy 1 | . . . . . . . . . . 1 Blast 21 | . . 1 1 . . 1 4 1 . 13 Sever 2 | . . . . . . . . . . 2 Melee Attacks 18 | . . . . . . . 1 . . 17 Thermal 3 | . . . . . . . . . . 3 Impact . | . . . . . . . . . . . Slashing 15 | . . . . . . . 1 . . 14 Piercing . | . . . . . . . . . . . Sneak Attacks 2 | . . . . . . . . . . 2 Combat Hostiles . | . . . . . . . . . . . Follow-up Attacks 1 | . . . . . . . . . . 1 Damage Inflicted 21548 | 116 701 646 1030 83 . 417 3339 2397 153 12666 Guns 7938 | 116 701 422 411 43 . 114 2454 1685 112 1880 Cannons 11822 | . . 191 619 40 . 186 749 646 . 9391 Explosions 807 | . . . . . . . . . . 807 Melee 473 | . . . . . . . . . . 473 Ramming 412 | . . 33 . . . 21 136 66 41 115 Kinetic 16211 | 116 526 362 619 40 . 186 1806 1247 112 11197 Thermal 3977 | . 175 251 411 43 . 210 1397 1084 . 406 Explosive 401 | . . . . . . . . . . 401 Electromagnetic 74 | . . . . . . . . . . 74 Impact . | . . . . . . . . . . . Slashing 473 | . . . . . . . . . . 473 Piercing . | . . . . . . . . . . . Highest Corruption 6 | . . 2 . . . 3 1 3 6 4 Average Corruption 1 | . . 2 . . . 3 1 1 4 2 Corruption Purged 4 | . . . . . . . . . . 4 Corruption Blocked . | . . . . . . . . . . . Effects 58 | . . 8 . . . 1 12 20 11 6 Message Errors 14 | . . 2 . . . . 3 5 2 2 Matter Fused 11 | . . 3 . . . . . 5 2 1 Heat Flow Errors 7 | . . 2 . . . 1 . 2 2 . Energy Discharges 11 | . . . . . . . 3 3 3 2 Data Loss (minor) 9 | . . 1 . . . . 3 4 1 . Data Loss (major) 4 | . . . . . . . 2 1 . 1 Misfires 1 | . . . . . . . . . 1 . Weapon Failures 1 | . . . . . . . 1 . . . Overload Shots . | . . . . . . . . . . . Overflow Damage 1187 | . . . 6 . . 9 41 3 . 1128 Projectiles 1091 | . . . 6 . . 9 . 3 . 1073 Explosions . | . . . . . . . . . . . Melee 96 | . . . . . . . 41 . . 55 Knockbacks 53 | . . 3 1 . . 1 4 4 . 40 Impact 4 | . . . . . . 1 1 1 . 1 Kinetic 38 | . . 3 1 . . . 3 3 . 28 Secondary 11 | . . . . . . . . . . 11 Self-Inflicted Damage 311 | . . 14 . . . 10 67 32 20 168 Shots 2 | . . . . . . . . . . 2 Rammed 22 | . . 6 . . . 1 5 3 1 6 Targets Rammed 22 | . . 6 . . . 1 5 3 1 6 Kicked . | . . . . . . . . . . . Crushed . | . . . . . . . . . . . Highest Temperature 519 | . 63 231 378 99 . 417 519 436 191 276 Average Temperature 108 | . 17 72 120 53 . 212 111 116 48 84 Received Heat Transfer 2633 | . 105 54 168 27 . 216 495 513 . 1055 Effects 27 | . . . 3 . . 6 11 6 . 1 Shutdowns 4 | . . . . . . . 3 1 . . Energy Bleed 5 | . . . 1 . . 2 . 1 . 1 Interference 10 | . . . 2 . . 3 2 3 . . Short Circuit 1 | . . . . . . 1 . . . . Damage (minor) 3 | . . . . . . . 2 1 . . Damage (major) 3 | . . . . . . . 3 . . . Damage (core) 1 | . . . . . . . 1 . . . Siege Activations . | . . . . . . . . . . . Robots Corrupted . | . . . . . . . . . . . Combat Hostiles . | . . . . . . . . . . . Parts Fried . | . . . . . . . . . . . Impact Corruptions 11 | . . . . . . . 2 . . 9 Robots Melted 1 | . . . . . . . . 1 . . Combat Hostiles 1 | . . . . . . . . 1 . . Parts Melted 23 | . 3 4 . . . . 8 6 . 2 Heat Transferred 9800 | . 666 851 999 111 . 496 3700 2627 . 350 Parts Sabotaged . | . . . . . . . . . . . Parts Stolen . | . . . . . . . . . . . Parts Stripped . | . . . . . . . . . . . Power Chain Reactions 1 | . . . . . . . . . . 1 Missiles Intercepted . | . . . . . . . . . . . Alert | -11 -10 -10 -9 -9 -9 -8 -8 -8 -8 -6 ------- Run | Scr Mat Min Mat Min Exi Min Mat Sto Rec Fac Peak Influence 1540 | 15 239 303 500 223 . 62 269 293 169 1540 Initial 959 | . 8 78 33 165 . . 20 25 48 959 Average 411 | 7 97 174 293 217 . 5 109 118 113 1291 Maximum Alert Level 4 | . 1 1 2 1 . . 1 1 . 4 Low Security (%) 56 | 100 80 62 23 7 . 100 84 70 100 . Level 1 17 | . 19 37 58 92 . . 15 29 . . Level 2 . | . . . 18 . . . . . . . Level 3 2 | . . . . . . . . . . 10 Level 4 22 | . . . . . . . . . . 89 Level 5 . | . . . . . . . . . . . High Security . | . . . . . . . . . . . Max Security . | . . . . . . . . . . . Squads Dispatched 28 | . 1 . 1 . . . 6 5 . 15 Investigation 15 | . 1 . 1 . . . 6 4 . 3 Extermination 4 | . . . . . . . . . . 4 Reinforcement 2 | . . . . . . . . 1 . 1 Assault 4 | . . . . . . . . . . 4 Garrison 3 | . . . . . . . . . . 3 Intercept . | . . . . . . . . . . . Searches Triggered 2 | . . . . . . . . . . 2 Construction Impeded 1 | . . . . . . . . . . 1 Haulers Reinforced . | . . . . . . . . . . . Active Scanning Responses . | . . . . . . . . . . . Cargo Convoy Interrupts . | . . . . . . . . . . . Stealth | -11 -10 -10 -9 -9 -9 -8 -8 -8 -8 -6 --------- Run | Scr Mat Min Mat Min Exi Min Mat Sto Rec Fac Distress Signals 6 | . . . 1 . . . 1 4 . . Communications Jammed . | . . . . . . . . . . . Distress Signals . | . . . . . . . . . . . Times Spotted 220 | . 15 16 18 3 . 3 46 25 9 85 Peak Tracking Total 9 | . 3 5 5 2 . 3 5 5 2 9 Tactical Retreats 14 | . . . . 1 . . 2 1 . 10 Traps | -11 -10 -10 -9 -9 -9 -8 -8 -8 -8 -6 ------- Run | Scr Mat Min Mat Min Exi Min Mat Sto Rec Fac Traps Triggered 7 | . . . . . . . 2 3 . 2 Indirectly . | . . . . . . . . . . . Trap Hack Attempts . | . . . . . . . . . . . Triggered . | . . . . . . . . . . . Disarmed 24 | . . . . . . . 6 6 . 12 Reprogrammed 5 | . . . . . . . 1 . . 4 Reused 2 | . . . . . . . 1 . . 1 Traps Extracted . | . . . . . . . . . . . Installed . | . . . . . . . . . . . Triggered 2 | . . . . . . . 1 . . 1 Machines | -11 -10 -10 -9 -9 -9 -8 -8 -8 -8 -6 ---------- Run | Scr Mat Min Mat Min Exi Min Mat Sto Rec Fac Machines Disabled 23 | . . 1 2 1 . . 2 1 1 15 Max in Single Turn 6 | . . 1 1 1 . . 1 1 1 6 Garrison Access 1 | . . . . . . . . 1 . . Machines Sabotaged . | . . . . . . . . . . . Garrisons Compromised . | . . . . . . . . . . . Overloaded Fab Kills . | . . . . . . . . . . . Hacking | -11 -10 -10 -9 -9 -9 -8 -8 -8 -8 -6 --------- Run | Scr Mat Min Mat Min Exi Min Mat Sto Rec Fac Machines Accessed 63 | . 9 . 3 . 1 . 15 13 11 11 Terminals 40 | . 7 . 2 . . . 10 9 6 6 Fabricators 2 | . . . . . . . . . . 2 Repair Stations 6 | . . . . . . . 2 2 . 2 Recycling Units 11 | . 2 . 1 . . . 1 1 5 1 Scanalyzers 2 | . . . . . . . 2 . . . Garrison Access 1 | . . . . . . . . 1 . . Total Hacks 169 | . 31 . 8 . 1 . 41 29 23 36 Successful 120 | . 21 . 3 . 1 . 32 17 16 30 Failed 49 | . 10 . 5 . . . 9 12 7 6 Catastrophic . | . . . . . . . . . . . Database Lockouts . | . . . . . . . . . . . Manual 2 | . . . . . 1 . . 1 . . Terminals 112 | . 29 . 5 . . . 25 16 17 20 Fabricators 7 | . . . . . . . . . . 7 Repair Stations 24 | . . . . . . . 9 7 . 8 Recycling Units 16 | . 2 . 3 . . . 1 3 6 1 Scanalyzers 6 | . . . . . . . 6 . . . Garrison Access 3 | . . . . . . . . 3 . . Terminal Hacks 73 | . 19 . 2 . 1 . 17 8 10 16 Record 1 | . 1 . . . . . . . . . Robot Schematic 1 | . . . . . . . . . 1 . Prototype ID Bank 3 | . 2 . . . . . 1 . . . Open Door 4 | . . . . . . . . 4 . . Level Access Points 3 | . 1 . . . . . 1 . . 1 Branch Access Points 3 | . 1 . . . . . 1 . 1 . Emergency Access Points 3 | . 1 . . . . . . . 1 1 Unreport Threat 5 | . 1 . . . . . 4 . . . Locate Traps 5 | . 1 . . . . . 3 1 . . Disarm Traps 5 | . . . . . . . 1 1 . 3 Reprogram Traps 2 | . . . . . . . 1 . . 1 Dispatch Records 5 | . 3 . . . . . 1 . . 1 Security Status 2 | . 1 . . . . . . . 1 . Patrol Status 1 | . 1 . . . . . . . . . Transport Status 1 | . 1 . . . . . . . . . Investigation Status 3 | . 2 . . . . . . . . 1 Extermination Status 2 | . . . . . . . . . 1 1 Recall Investigation 1 | . . . . . . . . . 1 . Hauler Manifests 1 | . . . . . . . . . . 1 Registered Components 2 | . . . 1 . . . . . 1 . Registered Prototypes 1 | . . . . . . . . . . 1 Zone Layout 18 | . 3 . 1 . . . 4 2 3 5 EX-Prototype ID Bank 1 | . . . . . 1 . . . . . Fabricator Hacks 7 | . . . . . . . . . . 7 Network Status 3 | . . . . . . . . . . 3 Load Schematic 1 | . . . . . . . . . . 1 Build 3 | . . . . . . . . . . 3 Repair Station Hacks 20 | . . . . . . . 8 6 . 6 Scan Component 10 | . . . . . . . 4 3 . 3 Repair 10 | . . . . . . . 4 3 . 3 Recycling Unit Hacks 13 | . 2 . 1 . . . 1 2 6 1 Report Inventory 11 | . 2 . 1 . . . 1 1 5 1 Retrieve Matter 1 | . . . . . . . . . 1 . Retrieve Components 1 | . . . . . . . . 1 . . Scanalyzer 6 | . . . . . . . 6 . . . Insert Component 3 | . . . . . . . 3 . . . Analyze 3 | . . . . . . . 3 . . . Garrison Access Hacks 1 | . . . . . . . . 1 . . Seal Access 1 | . . . . . . . . 1 . . Unauthorized Hacks . | . . . . . . . . . . . Terminals . | . . . . . . . . . . . Fabricators . | . . . . . . . . . . . Repair Stations . | . . . . . . . . . . . Recycling Units . | . . . . . . . . . . . Scanalyzers . | . . . . . . . . . . . Garrison Access . | . . . . . . . . . . . Data Cores Recovered 1 | . . . 1 . . . . . . . Used . | . . . . . . . . . . . Hacking Detections 42 | . 7 . 2 . . . 11 8 5 9 Full Trace Events 15 | . 3 . 1 . . . 6 3 1 1 Feedback Events . | . . . . . . . . . . . Feedback Blocked . | . . . . . . . . . . . Robot Schematics Acquired 1 | . . . . . . . . . 1 . Robots Built 1 | . . . . . . . . . . 1 Authchips . | . . . . . . . . . . . Time 81 | . . . . . . . . . . 81 Total Robot Build Rating 1 | . . . . . . . . . . 1 Part Schematics Acquired 3 | . . . . . . . 3 . . . Parts Built 1 | . . . . . . . . . . 1 Authchips . | . . . . . . . . . . . Time 221 | . . . . . . . . . . 221 Total Part Build Rating 8 | . . . . . . . . . . 8 Parts Repaired 10 | . . . . . . . 4 3 . 3 Time 293 | . . . . . . . 140 96 . 57 Parts Recycled . | . . . . . . . . . . . Recycled Matter . | . . . . . . . . . . . Retrieved Matter . | . . . . . . . . . . . Retrieved Components 3 | . . . . . . . . 3 . . Parts Scanalyzed 3 | . . . . . . . 3 . . . Part Schematics Acquired 3 | . . . . . . . 3 . . . Parts Damaged . | . . . . . . . . . . . Bothacking | -11 -10 -10 -9 -9 -9 -8 -8 -8 -8 -6 ------------ Run | Scr Mat Min Mat Min Exi Min Mat Sto Rec Fac Used RIF Installer . | . . . . . . . . . . . Robots Hacked . | . . . . . . . . . . . Non-combat . | . . . . . . . . . . . Combat . | . . . . . . . . . . . Robot Hacks Applied . | . . . . . . . . . . . Relay Couplers Released . | . . . . . . . . . . . Fabnet Peak Effective % . | . . . . . . . . . . . Robots Rewired . | . . . . . . . . . . . Allies Hacked . | . . . . . . . . . . . Hacks Repelled . | . . . . . . . . . . . Allies | -11 -10 -10 -9 -9 -9 -8 -8 -8 -8 -6 -------- Run | Scr Mat Min Mat Min Exi Min Mat Sto Rec Fac Total Allies 12 | . . . . . . . . 11 . 1 Largest Group 10 | . . . . . . . . 10 3 2 Highest-Rated Group 173 | . . . . . . . . 173 127 32 Highest-Rated Ally 100 | . . . . . . . . 100 95 16 Total Orders 17 | . . . . . . . . 9 3 5 ROAM 1 | . . . . . . . . 1 . . FOLLOW 4 | . . . . . . . . 3 1 . COLLECT 2 | . . . . . . . . . . 2 EXPLORE 9 | . . . . . . . . 5 1 3 RETURN 1 | . . . . . . . . . 1 . Ally Attacks 117 | . . . . . . . . 72 43 2 Total Damage 1287 | . . . . . . . . 1056 231 . Kills 17 | . . . . . . . . 9 8 . Allies Corrupted 1 | . . . . . . . . . . 1 Allies Melted 1 | . . . . . . . . 1 . . Intel | -11 -10 -10 -9 -9 -9 -8 -8 -8 -8 -6 ------- Run | Scr Mat Min Mat Min Exi Min Mat Sto Rec Fac Robot Analysis Total . | . . . . . . . . . . . Derelict Logs Recovered 3 | . . 2 . 1 . . . . . . Drone Launches 40 | . . . . . . . . 19 . 21 Drone Recoveries 25 | . . . . . . . . 8 7 10 Exploration | -11 -10 -10 -9 -9 -9 -8 -8 -8 -8 -6 ------------- Run | Scr Mat Min Mat Min Exi Min Mat Sto Rec Fac Turns Passed 9815 | 97 687 625 376 212 443 586 2205 1855 395 2334 Spaces Moved 5922 | 49 499 490 259 184 419 489 1186 867 290 1190 Core 13 | 9 . . . . . . . . . 4 Treads . | . . . . . . . . . . . Legs 310 | 40 260 . . . . . . . . 10 Wheels 5599 | . 239 490 259 184 419 489 1186 867 290 1176 Hover . | . . . . . . . . . . . Flight . | . . . . . . . . . . . Fastest Speed 50 | 50 90 90 90 90 105 105 108 120 120 120 Average Speed 121 | 107 107 98 90 103 105 106 125 122 120 153 Slowest Speed 1600 | 120 120 105 105 105 105 120 168 150 120 1600 Overloaded Moves . | . . . . . . . . . . . Propulsion Burnouts . | . . . . . . . . . . . Robots Hopped . | . . . . . . . . . . . Cave-ins Triggered . | . . . . . . . . . . . Exploration Rate (%) 71 | 5 90 94 39 36 90 95 95 97 99 43 Regions Visited 10 Branch Regions 6 Pre-discovered Areas 1 | . . 1 . . . . . . . . Known Exits Taken 4 | . 1 1 . . . 1 1 . . . Unknown Exits Taken 6 | 1 . . 1 1 1 . . 1 1 . Scrap Searched 2 | . . 1 . . . 1 . . . . Spaces Dug 1 | . . . . . . . 1 . . . Terrain Destroyed 69 | . . . . 1 . 2 2 1 . 63 Melee 1 | . . . . . . . 1 . . . Projectile 17 | . . . . 1 . 2 1 1 . 12 AOE 51 | . . . . . . . . . . 51 Terrain Rammed . | . . . . . . . . . . . Walls Destroyed . | . . . . . . . . . . . Machines Disabled . | . . . . . . . . . . . Actions | -11 -10 -10 -9 -9 -9 -8 -8 -8 -8 -6 --------- Run | Scr Mat Min Mat Min Exi Min Mat Sto Rec Fac Total 7786 | 80 571 569 323 197 422 517 1652 1517 323 1615 Wait 961 | 9 4 33 9 1 . 1 200 492 21 191 Move 5912 | 48 498 489 258 183 418 488 1185 866 289 1190 Hop . | . . . . . . . . . . . Pick Up 149 | 8 13 2 4 5 4 2 39 22 1 49 Fast Attach 19 | 4 3 1 . . . 1 7 2 . 1 Attach 71 | 3 1 1 3 . . 2 11 12 . 38 Detach 6 | . . . . . . . . . . 6 Swap 96 | . 3 3 3 2 . 3 35 23 . 24 Drop 109 | 2 9 3 3 2 . 2 36 18 . 34 Fire 416 | 6 40 31 43 4 . 17 133 79 11 52 Melee 17 | . . . . . . . 1 . . 16 Ram 22 | . . 6 . . . 1 5 3 1 6 Kick . | . . . . . . . . . . . Crush . | . . . . . . . . . . . Escape Stasis 8 | . . . . . . . . . . 8 Rewire . | . . . . . . . . . . . Trap . | . . . . . . . . . . . Miscellaneous . | . . . . . . . . . . . Route ------- -11/Scrapyard -10/Materials (discovered 4 exits: *Mat x3 / *Min) -10/Mines (discovered 2 exits: *Mat x2) -9/Materials (discovered 2 exits: *Mat / [*Min]) -9/Mines -9/Exiles -8/Mines (discovered 2 exits: *Mat x2) -8/Materials (discovered 5 exits: *Fac x3 / *Sto x2) -8/Storage (discovered 2 exits: *Fac / *Rec) -8/Recycling -6/Factory (discovered 6 exits: *Fac x4 / [*Low x2]) History --------- Turn | Location | Event 21 | -11/Scrapyard | Discovered new exit (range 15) 98 | -11/Scrapyard | Entered Materials 224 | -10/Materials | Identified exit to Materials 308 | -10/Materials | Identified exit to Mines 329 | -10/Materials | Build established: Mutant 785 | -10/Materials | Entered Mines 843 | -10/Mines | Discovered exit to Materials (range 10) 856 | -10/Mines | Met a Derelict bent on vengeance 911 | -10/Mines | Learned location of Zion (-7) 952 | -10/Mines | Learned location of 1 exit from Materials 1050 | -10/Mines | Assembled infested the area 1226 | -10/Mines | Core integrity fell below 50% 1392 | -10/Mines | Discovered exit to Materials (range 12) 1410 | -10/Mines | Entered Materials 1410 | -9/Materials | Evolved 2 slots: Propulsion x1, Utility x1 1411 | -9/Materials | Identified exit to Materials 1747 | -9/Materials | Discovered new exit (range 6) 1786 | -9/Materials | Entered Mines 1793 | -9/Mines | Learned Materials machine intel 1994 | -9/Mines | Deemed a non-threat by the Exiles lab entrance 1994 | -9/Mines | Discovered new exit (range 5) 1998 | -9/Mines | Entered Exiles 2026 | -9/Exiles | Met 8R-AWN 2044 | -9/Exiles | Met EX-HEX 2072 | -9/Exiles | Met EX-BIN 2087 | -9/Exiles | Aligned with FarCom system 2088 | -9/Exiles | Given EX-Vault access code 2113 | -9/Exiles | Opened EX-Vault 2120 | -9/Exiles | Found AWS/Autocannon 2144 | -9/Exiles | Warned to stay clear of 0b10 Research branches 2176 | -9/Exiles | Met EX-DEC 2249 | -9/Exiles | Visited The Gauntlet 2433 | -9/Exiles | Discovered new exit (range 10) 2441 | -9/Exiles | Left Exiles lab with AWS/Autocannon 2441 | -9/Exiles | Entered Mines 2480 | -8/Mines | Discovered exit to Materials (range 9) 2904 | -8/Mines | Discovered exit to Materials (range 12) 3027 | -8/Mines | Entered Materials 3027 | -8/Materials | Evolved 2 slots: Power x1, Utility x1 3028 | -8/Materials | Loaded intel: 41 machine locations 3084 | -8/Materials | Discovered new exit (range 14) 3144 | -8/Materials | Discovered new exit (range 6) 3492 | -8/Materials | Repaired Arm. Wheel 3526 | -8/Materials | Repaired Arm. Wheel 3806 | -8/Materials | Discovered new exit (range 13) 3856 | -8/Materials | Identified exit to Storage 4272 | -8/Materials | Build established: Hauler-Mutant 4493 | -8/Materials | Discovered new exit (range 5) 4602 | -8/Materials | Build established: Mutant 4606 | -8/Materials | Identified exit to Factory 5014 | -8/Materials | Repaired Adv. Weight Redist. System 5053 | -8/Materials | Repaired Minigun 5232 | -8/Materials | Entered Storage 5654 | -8/Storage | Repaired Arm. Wheel 5682 | -8/Storage | Repaired Core Shielding 5793 | -8/Storage | Core integrity fell below 50% 6251 | -8/Storage | Discovered exit to Factory (range 16) 6293 | -8/Storage | Assisted by bots powering up and referring to "LRC-V3" 6376 | -8/Storage | Core integrity fell below 20% 6469 | -8/Storage | Discovered new exit (range 12) 6580 | -8/Storage | Build established: Commander-Mutant 6858 | -8/Storage | Met 01-MTF 6907 | -8/Storage | Build established: Hacker-Mutant 7025 | -8/Storage | Repaired Deuterium Engine 7087 | -8/Storage | Entered Recycling 7087 | -8/Recycling | Accompanied by 10 allies (01-MTF) 7092 | -8/Recycling | 01-MTF left 7116 | -8/Recycling | Spotter reported a threat 7116 | -8/Recycling | Spotter reported a threat 7121 | -8/Recycling | Spotter reported a threat 7121 | -8/Recycling | Spotter reported a threat 7133 | -8/Recycling | Spotter reported a threat 7133 | -8/Recycling | Spotter reported a threat 7141 | -8/Recycling | Spotter reported a threat 7154 | -8/Recycling | Spotter reported a threat 7164 | -8/Recycling | Discovered new exit (range 71) 7169 | -8/Recycling | Spotter reported a threat 7174 | -8/Recycling | Spotter reported a threat 7187 | -8/Recycling | Spotter reported a threat 7192 | -8/Recycling | Spotter reported a threat 7197 | -8/Recycling | Spotter reported a threat 7227 | -8/Recycling | Spotter reported a threat 7237 | -8/Recycling | Spotter reported a threat 7269 | -8/Recycling | Spotter reported a threat 7270 | -8/Recycling | Spotter reported a threat 7311 | -8/Recycling | Spotter reported a threat 7314 | -8/Recycling | Spotter reported a threat 7322 | -8/Recycling | Spotter reported a threat 7327 | -8/Recycling | Spotter reported a threat 7367 | -8/Recycling | Spotter reported a threat 7375 | -8/Recycling | Spotter reported a threat 7410 | -8/Recycling | Spotter reported a threat 7410 | -8/Recycling | Spotter reported a threat 7420 | -8/Recycling | Spotter reported a threat 7447 | -8/Recycling | Spotter reported a threat 7482 | -8/Recycling | Entered Factory 7482 | -6/Factory | Accompanied by 2 allies 7482 | -6/Factory | Evolved 4 slots: Propulsion x1, Utility x2, Weapon x1 7578 | -6/Factory | Spotted B-75 Beast 7588 | -6/Factory | Destroyed B-75 Beast 7671 | -6/Factory | Discovered new exit (range 51) 7700 | -6/Factory | Discovered new exit (range 83) 7700 | -6/Factory | Discovered new exit (range 77) 7782 | -6/Factory | Fabricated Antigrav Array? 7832 | -6/Factory | Search patrols dispatched 7899 | -6/Factory | Build established: Hacker-Skirmisher 7926 | -6/Factory | Fabricated A-02 Transporter? 8182 | -6/Factory | Search patrols dispatched 8191 | -6/Factory | Garrison activated, responded to threat 8230 | -6/Factory | Destroyed 8 combat bots 8299 | -6/Factory | Identified exit to Factory 8459 | -6/Factory | Repaired Arm. Wheel 8477 | -6/Factory | Repaired Arm. Wheel 8532 | -6/Factory | First assault squad dispatched 8701 | -6/Factory | Destroyed 7 combat bots 8800 | -6/Factory | Discovered new exit (range 16) 9309 | -6/Factory | Repaired Lgt. Fission Core 9636 | -6/Factory | Lost 7 parts (2p1n4u) 9716 | -6/Factory | Core integrity fell below 50% 9763 | -6/Factory | Core integrity fell below 20% 9787 | -6/Factory | Lost 14 parts (3p3n3u5w) 9816 | -6/Factory | Destroyed by L-41 Fighter with Axe Last Messages --------------- 09785_ L-41 Fighter destroyed. 09788_ Sneak attack on M-28 Smith. 09788_ Destroyed Wheel. 09788_ Sneak attack on M-28 Smith. 09788_ Scythe follow-up attack on M-28 Smith. 09788_ M-28 Smith destroyed. 09792_ K-01 Serf collects debris. 09798_ K-01 Serf cleans the Recycling Unit. 09799_ K-01 Serf collects debris. 09804_ K-01 Serf cleans the Recycling Unit. 09804_ R-10 Processor inserts Carbon-fiber Leg into recycling unit. 09805_ K-01 Serf collects debris. 09807_ K-01 Serf cleans the Recycling Unit. 09807_ R-10 Processor inserts Rnf. Deuterium Engine into recycling unit. 09809_ K-01 Serf collects debris. 09810_ R-10 Processor inserts Lgt. Angular Momentum Engine into recycling unit. 09812_ K-01 Serf cleans the Recycling Unit. 09813_ R-10 Processor inserts Adv. Heat Sink into recycling unit. 09814_ Axe destroyed. 09815_ K-01 Serf cleans the Recycling Unit. Map ----- +----------------------------------------------------+ | ???????????????? ????????????????????????????? | | ???????????????# ????????????????????????????? | | ???????????????# ????????????????????????????? | | ???????????????# ????????????????????????????? | | ???????????##### #???????????????????????????? | | ??????##### ## #???????????????????????????? | | ??????# ## #??"????????????????????????? | | ??????# ## #??"????????????????????????? | | ??????# ## ###+######??????????????????? | | ??????# ## # o% """ #####??????????????? | | ??????# ## # k"Y" # ! #??????????????? | | ??????# ## # R # #??????????????? | | ??????# ## # #! #??????????????? | | ##????# ## ^ %/" =% # #??????????????? | | #????# ##^ g# !![ # ############???? | | #????# ## # !! # ## #???? | | ##????####+##### # =k! ! # ## ! #???? | | ??????# # [%% %[!##+### ! #???? | | ??????# ####+###### + """ #???? | | ??????# < #??# #????# ### """ ##### | | ??????# #??# #????# #?# """ / | | ??????# #??#!#????# #?# ##### | | ?????#####+######+#######%#????# #?# ##### | | ?????# # #t#????# #########+### | | ?????# # """ %#l##???# % % | | ?????# ]] # """ #@###### / | | ###### ]] # """ #[*/ % | | + ]] # #%%!% | | # # """ #[k*! | | # # """ #=u ######### ## ? ? | | # ! # """ #!### #???????# #????? | | ########### # #?# #???????# #????? | | #################+## #?# #???????# ###### | | #?# #???????# # | | #?# #???????# #= | | " "" #?#+######### # [[ | | " "" ###%= # # [[ | | "" """ ##"% = # # [[ | | "" """ ### =# # | | "" """ + """ """ # # """ | | #################### """ """ # # """ | | " "" #??????????????????# """ """ + + """ | | " "" #####??????????????# # # | | "" """ #??????????????#] # # | | "" """ #######???################ ###### | | "" """ #???# ! ! # #???? | | ##### #???# # ##### | | #???# #???# """ """ """ # | | ##############???# #???# """ """ """ # < | | ?????????????????# #???# """ """ """ # | +----------------------------------------------------+ Best States ------------- Heat Dissipation 50 Energy Generation 34 Energy Capacity 450 Matter Stores 300 Matter Capacity 500 Sight Range 20 Terrain Scan Range 16 Terrain Scan Density 10 Additional Mass Support 9 Base Temperature (-) 100 Armor Coverage 225 Resistance: KI 20 Resistance: TH 20 Resistance: EX 20 Resistance: EM 20 Resistance: I 20 Resistance: S 20 Resistance: P 20 Core Shielding 20 Evasion (%) 55 Targeting Accuracy 6 Recoil Reduction 4 Offensive Hacking 30 Defensive Hacking 10 Item Schematics ----------------- Core Shielding | -8/Materials | Scanalyzed Cryofiber Web | -8/Materials | Scanalyzed Assault Cannon | -8/Materials | Scanalyzed Robot Schematics ------------------ A-02 Transporter | -8/Recycling | Hacked Fabricated ------------ Antigrav Array | x1 | -6/Factory | Preloaded A-02 Transporter | x1 | -6/Factory Alien Tech Used ----------------- None Achievements -------------- Oh No You Don't! Challenges ------------ None Game ------ Seed WaveActuatorSword Manual? 0 Play Time 02:27:49 Cumulative 88.9 hours Start 2022.11.27 @ 06:14:00 End 2022.11.27 @ 19:23:50 Sessions 3 Manual Loads 0 Difficulty Adventurer Special Mode None Game No. 92 Rogue 0 Adventurer 92 Explorer 0 Win Type - Total 0 Types 0/0/0/0/0/0/0/0/0 Lore% 38 Gallery% 49 Achievement% 34 Wizard Run 0 Options --------- ASCII 0 Keyboard 0 Movement Mouse Keybinds 0 Fullscreen 1 Font 16/SmallcapsGlow Map View 113x50 Tactical HUD 1 Map Filters NONE Filters NONE Steam 1 RUN: 91f2c1c3-a05c-46fb-a3a8-0b2e1692f7a8